[Event "EYCC Girls-U18 2019"]
[Site "Bratislava"]
[Date "2019.08.06"]
[Round "5.3"]
[White "Cramling Bellon, Anna"]
[Black "Beydullayeva, Govhar"]
[Result "1-0"]
[ECO "E32"]
[WhiteElo "2030"]
[BlackElo "2282"]
[Annotator "NA"]
[PlyCount "85"]
[EventDate "2019.08.02"]
[EventType "swiss"]
[EventCountry "SVK"]
[SourceTitle "playchess.com"]
[Source "ChessBase"]
[SourceQuality "1"]
[TimeControl "40/5400+30:1800+30"]

1. d4 {[%emt 0:00:00]} e6 {[%emt 0:00:00]} 2. c4 {[%emt 0:00:00]} Nf6 {[%emt 0:00:03]} 3. Nc3 {[%emt 0:00:00]} Bb4 {[%emt 0:00:39]} 4. Qc2 {[%emt 0:00:47]} d6 {[%emt 0:01:56]} 5. Bd2 {[%emt 0:05:30]} O-O {[%emt 0:02:41]} 6. Nf3 {[%emt 0:03:04]} Nbd7 {[%emt 0:01:51]} 7. e3 {[%emt 0:10:06]} b6 {[%emt 0:03:09]} 8. Be2 {[%emt 0:02:09]} Bb7 {[%emt 0:01:20]} 9. O-O {[%emt 0:01:14]} Bxc3 {[%emt 0:12:00]} 10. Bxc3 {[%emt 0:00:18]} Ne4 {[%emt 0:00:09]} 11. Nd2 {[%emt 0:13:09]} Nxd2 {[%emt 0:16:40]} 12. Bxd2 {[%emt 0:06:06]} e5 {[%emt 0:04:55]} 13. Bd3 {[%emt 0:06:56]} Qh4 {[%emt 0:07:31]} 14. d5 {[%emt 0:12:50]} g6 {[%emt 0:08:02]} 15. e4 {[%emt 0:00:46]} a5 {[%emt 0:05:15]} 16. f4 {[%emt 0:04:18]} exf4 {[%emt 0:08:14]} 17. Bxf4 {[%emt 0:05:08]} Qe7 {[%emt 0:02:59]} 18. Qd2 {[%emt 0:05:02]} f6 {[%emt 0:01:39]} 19. b3 {[%emt 0:09:09]} Ne5 {[%emt 0:06:24]} 20. a3 {[%emt 0:03:02]} Rae8 {[%emt 0:02:08]} 21. Rae1 {[%emt 0:03:17]} Bc8 {[%emt 0:01:22]} 22. b4 {[%emt 0:01:16]} Ba6 {[%emt 0:05:53]} 23. Qc3 {[%emt 0:00:48]} Nxd3 {[%emt 0:02:13]} 24. Qxd3 {[%emt 0:00:01]} axb4 {[%emt 0:00:05]} 25. axb4 {[%emt 0:00:05]} f5 {[%emt 0:00:08]} 26. e5 {[%emt 0:02:52]} dxe5 {[%emt 0:00:04]} 27. b5 {[%emt 0:01:11]} e4 {[%emt 0:00:35]} 28. Qg3 {[%emt 0:01:49]} Bc8 {[%emt 0:02:49]} 29. d6 {[%emt 0:00:27]} Qe6 {[%emt 0:00:36]} 30. Rd1 {[%emt 0:02:48]} Rf7 {[%emt 0:02:56]} 31. dxc7 {[%emt 0:00:07]} Qxc4 {[%emt 0:00:27]} 32. Rd8 {[%emt 0:01:06]} Qc5+ {[%emt 0:00:24]} 33. Be3 {[%emt 0:00:35]} Qxb5 {[%emt 0:00:09]} 34. Rfd1 {[%emt 0:00:10]} Rff8 {[%emt 0:00:38]} 35. Bh6 {[%emt 0:00:22]} Qc5+ {[%emt 0:00:56]} 36. Kh1 {[%emt 0:00:01]} f4 {[%emt 0:00:22]} 37. Qb3+ {[%emt 0:01:00]} Be6 {[%emt 0:00:18]} 38. Qb2 {[%emt 0:00:20]} Qxc7 {[%emt 0:00:34]} 39. R8d7 {[%emt 0:00:16]} Rf7 {[%emt 0:00:31]} 40. Rxc7 {[%emt 0:00:00]} Rxc7 {[%emt 0:00:00]} 41. Bxf4 {[%emt 0:02:23]} Rf7 {[%emt 0:00:04]} 42. Be3 {[%emt 0:00:19]} Bg4 {[%emt 0:01:09]} 43. Rc1 {[%emt 0:01:56]} 1-0

[Event "EYCC Girls-U18 2019"]
[Site "Bratislava"]
[Date "2019.08.06"]
[Round "5.4"]
[White "Afonasieva, Anna"]
[Black "Antova, Gabriela"]
[Result "1-0"]
[ECO "D25"]
[WhiteElo "2370"]
[BlackElo "2257"]
[Annotator "NA"]
[PlyCount "139"]
[EventDate "2019.08.02"]
[EventType "swiss"]
[EventCountry "SVK"]
[SourceTitle "playchess.com"]
[Source "ChessBase"]
[SourceQuality "1"]
[TimeControl "40/5400+30:1800+30"]

1. d4 {[%emt 0:00:00]} d5 {[%emt 0:00:00]} 2. Nf3 {[%emt 0:00:00]} Nf6 {[%emt 0:00:00]} 3. c4 {[%emt 0:00:00]} dxc4 {[%emt 0:00:00]} 4. e3 {[%emt 0:00:00]} Bg4 {[%emt 0:00:58]} 5. Bxc4 {[%emt 0:01:51]} e6 {[%emt 0:00:07]} 6. Nc3 {[%emt 0:03:25]} Nc6 {[%emt 0:01:06]} 7. h3 {[%emt 0:07:25]} Bh5 {[%emt 0:00:13]} 8. g4 {[%emt 0:00:27]} Bg6 {[%emt 0:00:17]} 9. Qa4 {[%emt 0:00:40]} Nd7 {[%emt 0:11:43]} 10. Bb5 {[%emt 0:03:49]} Nb4 {[%emt 0:06:36]} 11. Bxd7+ {[%emt 0:01:44]} Qxd7 {[%emt 0:00:01]} 12. Qxd7+ {[%emt 0:00:09]} Kxd7 {[%emt 0:00:03]} 13. Ne5+ {[%emt 0:00:54]} Ke8 {[%emt 0:02:17]} 14. Ke2 {[%emt 0:01:15]} Bd6 {[%emt 0:02:25]} 15. Nxg6 {[%emt 0:01:01]} hxg6 {[%emt 0:00:02]} 16. Bd2 {[%emt 0:01:00]} Kd7 {[%emt 0:10:31]} 17. Rac1 {[%emt 0:03:34]} Nd5 {[%emt 0:04:28]} 18. Ne4 {[%emt 0:01:28]} Rh4 {[%emt 0:07:00]} 19. Nxd6 {[%emt 0:06:39]} cxd6 {[%emt 0:00:28]} 20. e4 {[%emt 0:00:20]} Nf6 {[%emt 0:07:01]} 21. Bg5 {[%emt 0:04:00]} Rh7 {[%emt 0:02:41]} 22. Bxf6 {[%emt 0:02:08]} gxf6 {[%emt 0:04:40]} 23. h4 {[%emt 0:00:21]} Rah8 {[%emt 0:05:37]} 24. Rc3 {[%emt 0:00:57]} Rxh4 {[%emt 0:05:07]} 25. Rhc1 {[%emt 0:00:07]} Rb8 {[%emt 0:00:05]} 26. Rc7+ {[%emt 0:01:23]} Ke8 {[%emt 0:00:01]} 27. Kf3 {[%emt 0:11:07]} a6 {[%emt 0:12:26]} 28. b4 {[%emt 0:03:04]} Kf8 {[%emt 0:02:51]} 29. Rd7 {[%emt 0:04:25]} Kg7 {[%emt 0:00:17]} 30. Rcc7 {[%emt 0:00:41]} Rf8 {[%emt 0:00:06]} 31. Rxd6 {[%emt 0:00:47]} e5 {[%emt 0:05:38]} 32. dxe5 {[%emt 0:09:22]} fxe5 {[%emt 0:00:07]} 33. Rxb7 {[%emt 0:00:37]} Rh3+ {[%emt 0:00:31]} 34. Kg2 {[%emt 0:00:12]} Ra3 {[%emt 0:00:14]} 35. Re6 {[%emt 0:03:25]} Rxa2 {[%emt 0:08:02]} 36. Rxe5 {[%emt 0:00:08]} Kh6 {[%emt 0:03:32]} 37. Kg3 {[%emt 0:11:22]} Ra3+ {[%emt 0:00:04]} 38. f3 {[%emt 0:00:15]} Rb3 {[%emt 0:00:50]} 39. Ra5 {[%emt 0:00:00]} Kg7 {[%emt 0:00:00]} 40. Rxa6 {[%emt 0:00:00]} Re8 {[%emt 0:00:00]} 41. Raa7 {[%emt 0:09:28]} Rxe4 {[%emt 0:07:32]} 42. Rxf7+ {[%emt 0:01:30]} Kh6 {[%emt 0:08:33]} 43. Ra6 {[%emt 0:08:22]} Rexb4 {[%emt 0:03:14]} 44. Rff6 {[%emt 0:00:05]} Kh7 {[%emt 0:05:25]} 45. Rxg6 {[%emt 0:00:07]} Rb7 {[%emt 0:00:09]} 46. Rgf6 {[%emt 0:02:37]} Kg7 {[%emt 0:00:24]} 47. g5 {[%emt 0:01:51]} Rb1 {[%emt 0:00:47]} 48. Ra5 {[%emt 0:02:25]} Rg1+ {[%emt 0:01:06]} 49. Kf4 {[%emt 0:00:00]} Rb3 {[%emt 0:02:34]} 50. Ra7+ {[%emt 0:00:08]} Kg8 {[%emt 0:00:03]} 51. Rc6 {[%emt 0:01:02]} Rb8 {[%emt 0:01:11]} 52. Kf5 {[%emt 0:00:30]} Kh8 {[%emt 0:01:26]} 53. f4 {[%emt 0:00:32]} Rf8+ {[%emt 0:00:39]} 54. Rf6 {[%emt 0:00:15]} Rb8 {[%emt 0:00:48]} 55. Re7 {[%emt 0:00:58]} Rg2 {[%emt 0:01:21]} 56. Rff7 {[%emt 0:02:25]} Rh2 {[%emt 0:01:26]} 57. Kg6 {[%emt 0:00:48]} Rg8+ {[%emt 0:00:14]} 58. Kf6 {[%emt 0:00:21]} Rc8 {[%emt 0:00:30]} 59. f5 {[%emt 0:01:00]} Rb8 {[%emt 0:01:07]} 60. g6 {[%emt 0:00:38]} Rb6+ {[%emt 0:00:11]} 61. Re6 {[%emt 0:00:12]} Rb8 {[%emt 0:00:19]} 62. Re4 {[%emt 0:03:18]} Rh5 {[%emt 0:01:13]} 63. Rd4 {[%emt 0:05:42]} Rh1 {[%emt 0:00:58]} 64. Kg5 {[%emt 0:01:54]} Kg8 {[%emt 0:00:21]} 65. Rfd7 {[%emt 0:04:06]} Rg1+ {[%emt 0:00:18]} 66. Kf6 {[%emt 0:00:06]} Rf8+ {[%emt 0:00:23]} 67. Rf7 {[%emt 0:00:12]} Ra8 {[%emt 0:00:58]} 68. Rg7+ {[%emt 0:00:05]} Kf8 {[%emt 0:00:02]} 69. Rgd7 {[%emt 0:00:16]} Ke8 {[%emt 0:01:00]} 70. Kg7 {[%emt 0:00:56]} 1-0

[Event "EYCC Girls-U18 2019"]
[Site "Bratislava"]
[Date "2019.08.06"]
[Round "5.5"]
[White "Ziegenfuss, Antonia"]
[Black "Goltseva, Ekaterina"]
[Result "0-1"]
[ECO "E23"]
[WhiteElo "2063"]
[BlackElo "2304"]
[Annotator "NA"]
[PlyCount "50"]
[EventDate "2019.08.02"]
[EventType "swiss"]
[EventCountry "SVK"]
[SourceTitle "playchess.com"]
[Source "ChessBase"]
[SourceQuality "1"]
[TimeControl "40/5400+30:1800+30"]

1. d4 {[%emt 0:00:00]} Nf6 {[%emt 0:00:00]} 2. c4 {[%emt 0:00:00]} e6 {[%emt 0:00:00]} 3. Nc3 {[%emt 0:00:00]} Bb4 {[%emt 0:00:00]} 4. Qb3 {[%emt 0:00:00]} c5 {[%emt 0:01:09]} 5. dxc5 {[%emt 0:00:02]} Nc6 {[%emt 0:00:42]} 6. Bg5 {[%emt 0:00:59]} O-O {[%emt 0:08:08]} 7. Nf3 {[%emt 0:02:01]} Bxc5 {[%emt 0:04:26]} 8. e3 {[%emt 0:01:44]} b6 {[%emt 0:20:32]} 9. Be2 {[%emt 0:01:37]} Bb7 {[%emt 0:03:06]} 10. a3 {[%emt 0:04:52]} Be7 {[%emt 0:02:03]} 11. O-O {[%emt 0:02:29]} Na5 {[%emt 0:02:49]} 12. Qa2 {[%emt 0:09:21]} Rc8 {[%emt 0:01:19]} 13. Nd2 {[%emt 0:24:20]} d5 {[%emt 0:04:28]} 14. Rfd1 {[%emt 0:10:58]} Qe8 {[%emt 0:04:30]} 15. Nb5 {[%emt 0:17:21]} Nxc4 {[%emt 0:16:39]} 16. Nxc4 {[%emt 0:04:16]} Qxb5 {[%emt 0:01:01]} 17. a4 {[%emt 0:09:03]} Qa6 {[%emt 0:02:05]} 18. Bxf6 {[%emt 0:01:29]} Bxf6 {[%emt 0:08:27]} 19. Nd6 {[%emt 0:04:06]} Qxe2 {[%emt 0:00:28]} 20. Nxc8 {[%emt 0:01:09]} Rxc8 {[%emt 0:00:25]} 21. Rdc1 {[%emt 0:00:37]} Rc4 {[%emt 0:01:47]} 22. Rxc4 {[%emt 0:00:41]} dxc4 {[%emt 0:00:09]} 23. b4 {[%emt 0:01:40]} Qxa2 {[%emt 0:02:05]} 24. Rxa2 {[%emt 0:00:04]} c3 {[%emt 0:00:08]} 25. f3 {[%emt 0:00:38]} Bd5 {[%emt 0:00:15]} 0-1

[Event "EYCC Girls-U18 2019"]
[Site "Bratislava"]
[Date "2019.08.06"]
[Round "5.6"]
[White "Muetsch, Annmarie"]
[Black "Grigoryan, Arpine"]
[Result "1-0"]
[ECO "B10"]
[WhiteElo "2266"]
[BlackElo "1996"]
[Annotator "NA"]
[PlyCount "55"]
[EventDate "2019.08.02"]
[EventType "swiss"]
[EventCountry "SVK"]
[SourceTitle "playchess.com"]
[Source "ChessBase"]
[SourceQuality "1"]
[TimeControl "40/5400+30:1800+30"]

1. e4 {[%emt 0:00:00]} c6 {[%emt 0:00:00]} 2. Nc3 {[%emt 0:00:00]} d5 {[%emt 0:00:00]} 3. Nf3 {[%emt 0:00:00]} Nf6 {[%emt 0:00:00]} 4. e5 {[%emt 0:00:11]} Ne4 {[%emt 0:00:05]} 5. Ne2 {[%emt 0:02:04]} Qb6 {[%emt 0:00:28]} 6. d4 {[%emt 0:00:07]} e6 {[%emt 0:00:08]} 7. Nfg1 {[%emt 0:01:28]} f6 {[%emt 0:00:25]} 8. f3 {[%emt 0:00:35]} Ng5 {[%emt 0:00:11]} 9. exf6 {[%emt 0:00:15]} gxf6 {[%emt 0:00:04]} 10. f4 {[%emt 0:00:07]} Nf7 {[%emt 0:01:15]} 11. Nf3 {[%emt 0:01:33]} c5 {[%emt 0:01:22]} 12. f5 {[%emt 0:05:47]} Nc6 {[%emt 0:09:49]} 13. fxe6 {[%emt 0:06:02]} Bxe6 {[%emt 0:00:35]} 14. Nf4 {[%emt 0:01:42]} O-O-O {[%emt 0:16:19]} 15. Be2 {[%emt 0:12:26]} Bg4 {[%emt 0:11:07]} 16. O-O {[%emt 0:01:49]} cxd4 {[%emt 0:02:37]} 17. Kh1 {[%emt 0:00:50]} Nfe5 {[%emt 0:01:18]} 18. Nxd4 {[%emt 0:09:55]} Bxe2 {[%emt 0:03:50]} 19. Nfxe2 {[%emt 0:00:38]} Nxd4 {[%emt 0:01:02]} 20. Nxd4 {[%emt 0:00:47]} h5 {[%emt 0:02:28]} 21. a4 {[%emt 0:04:11]} Bc5 {[%emt 0:12:37]} 22. a5 {[%emt 0:07:11]} Qa6 {[%emt 0:00:39]} 23. c3 {[%emt 0:00:05]} Rhg8 {[%emt 0:08:15]} 24. b4 {[%emt 0:03:40]} Bxd4 {[%emt 0:00:08]} 25. cxd4 {[%emt 0:00:04]} Nc6 {[%emt 0:00:43]} 26. Bf4 {[%emt 0:03:03]} Nxb4 {[%emt 0:02:55]} 27. Qb1 {[%emt 0:11:18]} Nc6 {[%emt 0:00:39]} 28. Qh7 {[%emt 0:00:21]} 1-0

[Event "EYCC Girls-U18 2019"]
[Site "Bratislava"]
[Date "2019.08.06"]
[Round "5.7"]
[White "Sargsyan, Anna M."]
[Black "Olde, Grete"]
[Result "1-0"]
[ECO "C46"]
[WhiteElo "2229"]
[BlackElo "1955"]
[Annotator "NA"]
[PlyCount "39"]
[EventDate "2019.08.02"]
[EventType "swiss"]
[EventCountry "SVK"]
[SourceTitle "playchess.com"]
[Source "ChessBase"]
[SourceQuality "1"]
[TimeControl "40/5400+30:1800+30"]

1. e4 {[%emt 0:00:00]} e5 {[%emt 0:00:00]} 2. Nf3 {[%emt 0:00:00]} Nc6 {[%emt 0:00:00]} 3. Nc3 {[%emt 0:00:00]} Bb4 {[%emt 0:00:09]} 4. Nd5 {[%emt 0:00:00]} Ba5 {[%emt 0:00:26]} 5. Bc4 {[%emt 0:00:51]} Nf6 {[%emt 0:01:59]} 6. O-O {[%emt 0:00:55]} d6 {[%emt 0:01:11]} 7. c3 {[%emt 0:04:51]} O-O {[%emt 0:15:35]} 8. a4 {[%emt 0:08:37]} Bb6 {[%emt 0:04:46]} 9. d3 {[%emt 0:02:15]} Na5 {[%emt 0:05:46]} 10. Ba2 {[%emt 0:00:42]} c5 {[%emt 0:01:56]} 11. Bg5 {[%emt 0:00:53]} Nc6 {[%emt 0:05:42]} 12. Nh4 {[%emt 0:00:53]} Nb8 {[%emt 0:06:28]} 13. Qf3 {[%emt 0:02:25]} Nbd7 {[%emt 0:01:28]} 14. Nf5 {[%emt 0:00:05]} Re8 {[%emt 0:02:06]} 15. Qg3 {[%emt 0:06:25]} g6 {[%emt 0:04:57]} 16. Nh6+ {[%emt 0:00:11]} Kg7 {[%emt 0:00:23]} 17. Nxf7 {[%emt 0:00:19]} Kxf7 {[%emt 0:01:08]} 18. Nxf6+ {[%emt 0:00:05]} Re6 {[%emt 0:00:28]} 19. Bxe6+ {[%emt 0:00:07]} Kxe6 {[%emt 0:00:04]} 20. Qh3+ {[%emt 0:00:06]} 1-0

[Event "EYCC Girls-U18 2019"]
[Site "Bratislava"]
[Date "2019.08.06"]
[Round "5.8"]
[White "Kucharska, Honorata"]
[Black "Nazarova, Anastasia"]
[Result "1-0"]
[ECO "B36"]
[WhiteElo "2054"]
[BlackElo "2149"]
[Annotator "NA"]
[PlyCount "119"]
[EventDate "2019.08.02"]
[EventType "swiss"]
[EventCountry "SVK"]
[SourceTitle "playchess.com"]
[Source "ChessBase"]
[SourceQuality "1"]
[TimeControl "40/5400+30:1800+30"]

1. e4 {[%emt 0:00:00]} c5 {[%emt 0:00:00]} 2. Nf3 {[%emt 0:00:00]} Nc6 {[%emt 0:00:00]} 3. d4 {[%emt 0:00:00]} cxd4 {[%emt 0:00:00]} 4. Nxd4 {[%emt 0:00:04]} g6 {[%emt 0:00:00]} 5. c4 {[%emt 0:00:55]} Nf6 {[%emt 0:00:02]} 6. Nc3 {[%emt 0:00:21]} Nxd4 {[%emt 0:01:29]} 7. Qxd4 {[%emt 0:00:22]} d6 {[%emt 0:00:03]} 8. Be3 {[%emt 0:01:12]} Bg7 {[%emt 0:00:15]} 9. f3 {[%emt 0:00:51]} O-O {[%emt 0:00:06]} 10. Qd2 {[%emt 0:00:30]} a5 {[%emt 0:00:40]} 11. Na4 {[%emt 0:00:54]} Nd7 {[%emt 0:05:14]} 12. O-O-O {[%emt 0:04:02]} Qc7 {[%emt 0:06:33]} 13. Kb1 {[%emt 0:03:02]} Nc5 {[%emt 0:08:44]} 14. Nc3 {[%emt 0:03:35]} Be6 {[%emt 0:00:10]} 15. h4 {[%emt 0:05:24]} Nd7 {[%emt 0:19:46]} 16. h5 {[%emt 0:05:43]} Nf6 {[%emt 0:08:35]} 17. hxg6 {[%emt 0:08:42]} fxg6 {[%emt 0:00:01]} 18. Rc1 {[%emt 0:01:40]} Rfc8 {[%emt 0:02:31]} 19. g4 {[%emt 0:03:54]} Qd7 {[%emt 0:13:40]} 20. Nd5 {[%emt 0:03:29]} Bxd5 {[%emt 0:02:23]} 21. exd5 {[%emt 0:00:18]} Qa4 {[%emt 0:11:20]} 22. Bd4 {[%emt 0:06:26]} b5 {[%emt 0:04:00]} 23. g5 {[%emt 0:02:57]} Ne8 {[%emt 0:00:07]} 24. Bh3 {[%emt 0:01:23]} e5 {[%emt 0:04:24]} 25. dxe6 {[%emt 0:02:43]} Rxc4 {[%emt 0:01:25]} 26. Bxg7 {[%emt 0:01:25]} Kxg7 {[%emt 0:00:50]} 27. b3 {[%emt 0:01:26]} Rxc1+ {[%emt 0:01:41]} 28. Rxc1 {[%emt 0:00:16]} Qb4 {[%emt 0:01:04]} 29. Qb2+ {[%emt 0:00:42]} Kg8 {[%emt 0:00:13]} 30. e7 {[%emt 0:03:02]} h5 {[%emt 0:01:30]} 31. gxh6 {[%emt 0:01:58]} Qh4 {[%emt 0:02:03]} 32. h7+ {[%emt 0:07:29]} Kxh7 {[%emt 0:00:04]} 33. Bg2 {[%emt 0:00:22]} Qf6 {[%emt 0:00:35]} 34. f4 {[%emt 0:06:25]} Qxb2+ {[%emt 0:03:11]} 35. Kxb2 {[%emt 0:00:05]} Ra7 {[%emt 0:00:15]} 36. Re1 {[%emt 0:02:50]} Rc7 {[%emt 0:01:18]} 37. Bf1 {[%emt 0:09:33]} Rb7 {[%emt 0:00:09]} 38. Bd3 {[%emt 0:00:56]} Kg7 {[%emt 0:01:00]} 39. Rg1 {[%emt 0:01:33]} Kf7 {[%emt 0:01:03]} 40. Bxg6+ {[%emt 0:00:00]} Kxe7 {[%emt 0:00:00]} 41. Re1+ {[%emt 0:00:26]} Kf6 {[%emt 0:00:45]} 42. Bxe8 {[%emt 0:00:07]} b4 {[%emt 0:00:20]} 43. Bc6 {[%emt 0:02:20]} Rh7 {[%emt 0:00:32]} 44. Re2 {[%emt 0:00:43]} Rh4 {[%emt 0:00:26]} 45. Rf2 {[%emt 0:00:50]} Kf5 {[%emt 0:02:19]} 46. Bd7+ {[%emt 0:00:05]} Kf6 {[%emt 0:00:14]} 47. f5 {[%emt 0:00:18]} d5 {[%emt 0:00:03]} 48. Kc2 {[%emt 0:02:13]} Rh3 {[%emt 0:01:41]} 49. Rd2 {[%emt 0:01:47]} Rc3+ {[%emt 0:00:34]} 50. Kb2 {[%emt 0:00:08]} Ke5 {[%emt 0:00:18]} 51. Re2+ {[%emt 0:02:10]} Kf6 {[%emt 0:00:46]} 52. Re6+ {[%emt 0:00:27]} Kf7 {[%emt 0:00:57]} 53. Be8+ {[%emt 0:00:53]} Kf8 {[%emt 0:00:13]} 54. Bg6 {[%emt 0:00:34]} Kg7 {[%emt 0:00:09]} 55. Rd6 {[%emt 0:01:51]} Rd3 {[%emt 0:01:41]} 56. Bh5 {[%emt 0:00:16]} Rd2+ {[%emt 0:00:43]} 57. Kb1 {[%emt 0:00:07]} Rf2 {[%emt 0:00:12]} 58. Rxd5 {[%emt 0:00:12]} Rf1+ {[%emt 0:00:09]} 59. Bd1 {[%emt 0:00:50]} Kf6 {[%emt 0:00:12]} 60. Kc1 {[%emt 0:01:26]} 1-0

[Event "EYCC Girls-U18 2019"]
[Site "Bratislava"]
[Date "2019.08.06"]
[Round "5.9"]
[White "Grigorieva, Yulia"]
[Black "Gajcin, Marina"]
[Result "1-0"]
[ECO "D82"]
[WhiteElo "2096"]
[BlackElo "2267"]
[Annotator "NA"]
[PlyCount "149"]
[EventDate "2019.08.02"]
[EventType "swiss"]
[EventCountry "SVK"]
[SourceTitle "playchess.com"]
[Source "ChessBase"]
[SourceQuality "1"]
[TimeControl "40/5400+30:1800+30"]

1. d4 {[%emt 0:00:00]} Nf6 {[%emt 0:00:00]} 2. c4 {[%emt 0:00:00]} g6 {[%emt 0:00:00]} 3. Nc3 {[%emt 0:00:00]} d5 {[%emt 0:00:00]} 4. Bf4 {[%emt 0:00:05]} Bg7 {[%emt 0:00:00]} 5. Qa4+ {[%emt 0:00:23]} c6 {[%emt 0:14:39]} 6. e3 {[%emt 0:05:14]} O-O {[%emt 0:02:26]} 7. Nf3 {[%emt 0:02:53]} Nbd7 {[%emt 0:04:51]} 8. cxd5 {[%emt 0:01:07]} Nb6 {[%emt 0:01:16]} 9. Qa3 {[%emt 0:01:04]} Nbxd5 {[%emt 0:01:24]} 10. Be5 {[%emt 0:05:00]} a5 {[%emt 0:06:19]} 11. Nxd5 {[%emt 0:11:15]} Nxd5 {[%emt 0:08:25]} 12. Bxg7 {[%emt 0:02:07]} Kxg7 {[%emt 0:00:05]} 13. Be2 {[%emt 0:01:29]} Qb6 {[%emt 0:05:03]} 14. O-O {[%emt 0:06:26]} Qb4 {[%emt 0:01:37]} 15. Qxb4 {[%emt 0:06:53]} axb4 {[%emt 0:05:02]} 16. Bc4 {[%emt 0:03:19]} Nb6 {[%emt 0:04:12]} 17. Rfc1 {[%emt 0:13:13]} Bf5 {[%emt 0:05:40]} 18. Ne1 {[%emt 0:05:19]} Na4 {[%emt 0:05:37]} 19. Bd3 {[%emt 0:00:37]} Be6 {[%emt 0:03:20]} 20. Bc4 {[%emt 0:05:08]} Bf5 {[%emt 0:02:24]} 21. Bd3 {[%emt 0:06:02]} Nxb2 {[%emt 0:01:32]} 22. Bxf5 {[%emt 0:00:46]} gxf5 {[%emt 0:00:01]} 23. Rab1 {[%emt 0:02:55]} Na4 {[%emt 0:00:37]} 24. Rxb4 {[%emt 0:00:42]} Ra7 {[%emt 0:02:23]} 25. Nd3 {[%emt 0:02:54]} Rfa8 {[%emt 0:02:06]} 26. h3 {[%emt 0:00:54]} Kf6 {[%emt 0:02:16]} 27. Rcc4 {[%emt 0:03:50]} e6 {[%emt 0:02:08]} 28. g4 {[%emt 0:00:04]} fxg4 {[%emt 0:00:38]} 29. hxg4 {[%emt 0:00:11]} Ke7 {[%emt 0:01:02]} 30. g5 {[%emt 0:00:22]} Kd6 {[%emt 0:02:06]} 31. Ne5 {[%emt 0:01:46]} c5 {[%emt 0:00:28]} 32. Rb5 {[%emt 0:02:56]} b6 {[%emt 0:00:25]} 33. f4 {[%emt 0:02:32]} Rf8 {[%emt 0:03:25]} 34. dxc5+ {[%emt 0:01:29]} bxc5 {[%emt 0:00:12]} 35. Rb3 {[%emt 0:01:17]} Rfa8 {[%emt 0:06:06]} 36. Kg2 {[%emt 0:01:22]} h6 {[%emt 0:03:38]} 37. gxh6 {[%emt 0:01:13]} f6 {[%emt 0:01:57]} 38. Rd3+ {[%emt 0:00:17]} Kc7 {[%emt 0:00:09]} 39. Rd7+ {[%emt 0:00:28]} Kb6 {[%emt 0:00:15]} 40. Rxa7 Rxa7 {[%emt 0:00:00]} 41. Ng4 {[%emt 0:07:47]} Kb5 {[%emt 0:11:23]} 42. Rc1 {[%emt 0:00:28]} Rh7 {[%emt 0:02:31]} 43. Rh1 {[%emt 0:01:31]} f5 {[%emt 0:00:48]} 44. Nf6 {[%emt 0:01:36]} Rh8 {[%emt 0:00:04]} 45. Kf2 {[%emt 0:06:37]} Nc3 {[%emt 0:02:18]} 46. h7 {[%emt 0:01:53]} Nd5 {[%emt 0:05:06]} 47. Nxd5 {[%emt 0:01:51]} exd5 {[%emt 0:00:01]} 48. Ke2 {[%emt 0:00:53]} Kc4 {[%emt 0:03:01]} 49. Kd2 {[%emt 0:02:27]} Kb4 {[%emt 0:03:26]} 50. Kd3 {[%emt 0:03:24]} Ka3 {[%emt 0:01:56]} 51. Kc3 {[%emt 0:00:48]} Kxa2 {[%emt 0:00:46]} 52. Rh5 {[%emt 0:00:30]} Kb1 {[%emt 0:06:36]} 53. Rxf5 {[%emt 0:03:14]} Rxh7 {[%emt 0:00:29]} 54. Rxd5 {[%emt 0:00:09]} Rh3 {[%emt 0:00:08]} 55. Re5 {[%emt 0:00:25]} Kc1 {[%emt 0:00:07]} 56. Kc4 {[%emt 0:00:38]} Kd2 {[%emt 0:00:18]} 57. Kxc5 {[%emt 0:00:25]} Ke2 {[%emt 0:00:46]} 58. Kd5 {[%emt 0:01:21]} Kf3 {[%emt 0:00:51]} 59. f5 {[%emt 0:00:45]} Rh6 {[%emt 0:00:04]} 60. e4 {[%emt 0:01:43]} Kf4 {[%emt 0:00:04]} 61. Re8 {[%emt 0:01:20]} Ra6 {[%emt 0:00:37]} 62. Rc8 {[%emt 0:01:52]} Ra5+ {[%emt 0:01:27]} 63. Rc5 {[%emt 0:00:32]} Ra6 {[%emt 0:00:09]} 64. Rc6 {[%emt 0:02:37]} Ra5+ {[%emt 0:00:43]} 65. Ke6 {[%emt 0:00:54]} Re5+ {[%emt 0:01:05]} 66. Kf7 {[%emt 0:00:20]} Kxe4 {[%emt 0:02:49]} 67. f6 {[%emt 0:00:15]} Ra5 {[%emt 0:01:17]} 68. Kg8 {[%emt 0:02:15]} Kd5 {[%emt 0:00:47]} 69. Rb6 {[%emt 0:00:37]} Kc5 {[%emt 0:00:32]} 70. Re6 {[%emt 0:00:37]} Ra8+ {[%emt 0:00:14]} 71. Kg7 {[%emt 0:01:07]} Kd5 {[%emt 0:00:23]} 72. Re2 {[%emt 0:00:45]} Ra1 {[%emt 0:00:22]} 73. f7 {[%emt 0:00:17]} Rg1+ {[%emt 0:00:04]} 74. Kf6 {[%emt 0:00:11]} Rf1+ {[%emt 0:00:10]} 75. Ke7 {[%emt 0:00:05]} 1-0

[Event "EYCC Girls-U18 2019"]
[Site "Bratislava"]
[Date "2019.08.06"]
[Round "5.10"]
[White "Redondo Benavente, Ana"]
[Black "Represa Perez, Mireya"]
[Result "1-0"]
[ECO "B23"]
[WhiteElo "2176"]
[BlackElo "2017"]
[Annotator "NA"]
[PlyCount "77"]
[EventDate "2019.08.02"]
[EventType "swiss"]
[EventCountry "SVK"]
[SourceTitle "playchess.com"]
[Source "ChessBase"]
[SourceQuality "1"]
[TimeControl "40/5400+30:1800+30"]

1. e4 {[%emt 0:00:00]} c5 {[%emt 0:00:00]} 2. Nc3 {[%emt 0:00:00]} d6 {[%emt 0:04:13]} 3. d4 {[%emt 0:01:26]} cxd4 {[%emt 0:00:11]} 4. Qxd4 {[%emt 0:00:08]} a6 {[%emt 0:04:56]} 5. b3 {[%emt 0:02:37]} Nf6 {[%emt 0:04:44]} 6. Bb2 {[%emt 0:00:57]} Nc6 {[%emt 0:05:12]} 7. Qd2 {[%emt 0:00:19]} b5 {[%emt 0:02:24]} 8. Bd3 {[%emt 0:04:18]} e5 {[%emt 0:05:05]} 9. O-O-O {[%emt 0:02:01]} Be7 {[%emt 0:00:53]} 10. Kb1 {[%emt 0:02:13]} Be6 {[%emt 0:03:27]} 11. f4 {[%emt 0:05:55]} exf4 {[%emt 0:08:12]} 12. Qxf4 {[%emt 0:03:15]} Qa5 {[%emt 0:03:04]} 13. Nge2 {[%emt 0:06:16]} Rc8 {[%emt 0:03:05]} 14. h3 {[%emt 0:04:15]} O-O {[%emt 0:06:57]} 15. g4 {[%emt 0:01:54]} Ne5 {[%emt 0:03:57]} 16. g5 {[%emt 0:05:19]} Nh5 {[%emt 0:03:59]} 17. Qe3 {[%emt 0:05:17]} b4 {[%emt 0:05:02]} 18. Nd5 {[%emt 0:06:25]} Bxd5 {[%emt 0:01:51]} 19. exd5 {[%emt 0:00:01]} Nxd3 {[%emt 0:02:57]} 20. Qxd3 {[%emt 0:05:33]} Bxg5 {[%emt 0:03:59]} 21. Qf5 {[%emt 0:06:23]} h6 {[%emt 0:01:10]} 22. h4 {[%emt 0:04:37]} g6 {[%emt 0:01:26]} 23. Qf3 {[%emt 0:03:40]} Be7 {[%emt 0:03:14]} 24. Rdg1 {[%emt 0:01:03]} Ng7 {[%emt 0:02:54]} 25. Qe3 {[%emt 0:03:01]} Qd8 {[%emt 0:07:23]} 26. Qd4 {[%emt 0:04:31]} f6 {[%emt 0:01:58]} 27. Rxg6 {[%emt 0:00:07]} Kf7 {[%emt 0:01:31]} 28. Rhg1 {[%emt 0:02:14]} Rg8 {[%emt 0:04:27]} 29. Qg4 {[%emt 0:02:29]} Qf8 {[%emt 0:00:18]} 30. Rxg7+ {[%emt 0:03:08]} Rxg7 {[%emt 0:00:36]} 31. Qe6+ {[%emt 0:00:08]} Ke8 {[%emt 0:00:37]} 32. Qxc8+ {[%emt 0:00:22]} Bd8 {[%emt 0:00:10]} 33. Rxg7 {[%emt 0:00:43]} Qxg7 {[%emt 0:00:06]} 34. Qc6+ {[%emt 0:04:02]} Kf8 {[%emt 0:00:07]} 35. Qxd6+ {[%emt 0:00:07]} Be7 {[%emt 0:00:04]} 36. Qg3 {[%emt 0:00:48]} Qf7 {[%emt 0:00:12]} 37. Nf4 {[%emt 0:00:34]} Bd6 {[%emt 0:00:13]} 38. Ne6+ {[%emt 0:02:15]} Ke7 {[%emt 0:00:05]} 39. Qg7 {[%emt 0:00:12]} 1-0